bitfinex/quotes_ETHUSD_20240603
["timestamp","ask_amount","ask_price","bid_price","bid_amount"]
[1717431883685,0.85266276,3775.1,3775.0,2.649]
[1717431883997,0.54882641,3775.3,3775.0,2.649]
[1717431884333,0.85269513,3775.2,3775.0,2.649]
[1717431884549,0.54882641,3775.3,3775.0,2.649]
[1717431884852,0.85254037,3775.2,3775.0,2.649]
[1717431884992,0.54882641,3775.4,3775.0,2.649]
[1717431885190,0.54882641,3775.4,3775.2,2.64886]
[1717431885191,0.85257037,3775.3,3775.2,2.64886]
[1717431885388,0.85257037,3775.3,3775.2,4.56586]
[1717431885596,0.54882641,3775.5,3775.2,4.56586]
[1717431885839,1.83181558,3775.4,3775.2,4.56586]
[1717431886085,0.85241243,3775.3,3775.2,4.56586]
[1717431886592,0.54882641,3775.5,3775.2,4.56586]
[1717431886844,0.85227959,3775.4,3775.2,4.56586]
[1717431887329,0.85227959,3775.4,3775.3,1.32126577]
[1717431887498,0.54882641,3775.6,3775.4,2.64872]
[1717431887704,1.83144149,3775.5,3775.4,2.64872]
[1717431887936,0.85223842,3775.5,3775.4,2.64872]
[1717431888632,0.54882641,3775.7,3775.4,2.64872]
[1717431889040,0.85209405,3775.6,3775.4,2.64872]
[1717431889383,0.54882641,3775.8,3775.4,2.64872]
[1717431889593,2.37958453,3775.7,3775.4,2.64872]
[1717431889796,0.54882641,3775.5,3775.4,2.64872]
[1717431890042,2.3795434,3775.5,3775.4,2.64872]
[1717431890237,2.30855976,3775.5,3775.0,2.64894]
[1717431890439,2.30855976,3775.5,3772.7,3.47894081]
[1717431890440,0.54882641,3775.1,3774.6,4.56622]
[1717431890737,2.3795434,3775.0,3774.6,4.56622]
[1717431890913,2.3795434,3774.9,3774.6,4.56622]
[1717431891099,0.85192261,3774.8,3774.6,4.56622]
[1717431891426,0.54882641,3775.0,3774.6,4.56622]
[1717431891624,1.40033684,3775.0,3774.6,4.56622]
[1717431892011,0.85151043,3774.9,3774.6,4.56622]
[1717431892216,0.85151043,3774.8,3774.6,4.56622]
[1717431892430,0.54882641,3774.9,3774.6,4.56622]
[1717431892811,1.40030802,3774.9,3774.6,4.56622]
[1717431893015,0.97836324,3774.8,3774.6,4.56622]
[1717431893258,0.54882641,3774.9,3774.6,4.56622]
[1717431893538,2.37889077,3774.8,3774.6,4.56622]
[1717431893707,0.85158108,3774.7,3774.6,4.56622]
[1717431893901,1.40040749,3774.8,3774.6,1.917]
[1717431894106,0.85158108,3774.7,3774.6,1.917]
[1717431894717,1.40040749,3774.8,3774.6,1.917]
[1717431894926,0.85158108,3774.7,3774.6,1.917]
[1717431895651,1.40040749,3774.8,3774.6,1.917]
[1717431896209,1.40040749,3774.8,3774.7,2.64921]
[1717431896410,0.54882641,3775.0,3774.7,2.64921]
[1717431896845,0.54882641,3775.0,3774.7,3.97047577]
[1717431896846,2.95215095,3775.0,3774.7,3.97047577]
[1717431897018,0.85189499,3774.9,3774.7,3.97047577]
[1717431897223,0.54882641,3775.0,3774.7,3.97047577]
[1717431897420,0.8520161,3774.9,3774.7,3.97047577]
[1717431897754,0.8520161,3774.9,3774.7,2.64921]
[1717431897952,0.8237903,3775.2,3775.0,2.64896]
[1717431897953,2.1241212,3775.2,3775.0,2.64896]
[1717431898154,1.83107655,3775.1,3775.0,2.64896]
[1717431898329,0.85206097,3775.1,3775.0,4.56596]
[1717431899049,0.85229505,3775.2,3775.0,4.56596]
[1717431899246,0.85229505,3775.1,3775.0,4.56596]
[1717431899451,0.54882641,3775.3,3775.0,4.56596]
[1717431899604,1.83183342,3775.2,3775.0,4.56596]
[1717431899809,0.54882641,3775.3,3775.0,4.56596]
[1717431900013,0.54882641,3775.3,3775.0,5.20034468]
[1717431900014,0.85242736,3775.2,3775.0,5.20034468]
[1717431900252,0.85242736,3775.1,3775.0,5.20034468]
[1717431900553,0.54882641,3775.3,3775.0,6.52161045]
[1717431900753,0.54882641,3775.3,3775.2,2.64886]
[1717431900961,1.40157334,3775.3,3775.0,1.917]
[1717431901111,1.83253894,3775.2,3774.8,2.64911]
[1717431901455,0.54882641,3775.0,3774.8,4.56611]
[1717431901649,2.38155462,3774.9,3774.8,4.56611]
[1717431901806,0.85274693,3774.9,3774.8,4.56611]
[1717431902111,1.83294843,3774.9,3774.8,4.56611]
[1717431902546,2.38177484,3774.9,3774.8,4.56611]
[1717431902856,0.54882641,3775.1,3774.8,6.34398677]
[1717431903052,0.85322682,3775.0,3774.8,5.022721]
[1717431903225,0.54882641,3775.2,3774.8,4.56611]
[1717431903559,0.54882641,3774.9,3774.8,4.56611]
[1717431903758,2.38234703,3774.9,3774.8,4.56611]
[1717431904258,2.38234703,3774.9,3774.8,2.64911]
[1717431904483,1.83352062,3774.9,3774.8,4.56611]
[1717431904815,1.83352062,3774.9,3774.8,6.34398677]
[1717431905042,0.54911231,3775.3,3775.2,2.64886]
[1717431905240,1.83437723,3775.3,3775.2,3.97012577]
[1717431905458,2.38348954,3775.3,3775.2,5.88712577]
[1717431906818,1.83437723,3775.3,3775.2,5.88712577]
[1717431907574,1.83405981,3775.3,3775.2,5.88712577]
[1717431907868,2.38317212,3775.3,3775.2,5.88712577]
[1717431908619,1.83405981,3775.3,3775.2,5.88712577]
[1717431908961,2.38317212,3775.3,3775.2,5.88712577]
[1717431909523,1.83405981,3775.3,3775.2,5.88712577]
[1717431910327,1.83405981,3775.3,3775.2,6.71085835]
[1717431910828,2.38462071,3775.3,3775.2,6.71085835]
[1717431911056,2.38462071,3775.3,3775.2,3.97012577]
[1717431911359,3.01019979,3775.3,3775.2,4.56586]
[1717431911567,3.58272324,3775.3,3774.8,4.56609]
[1717431911733,0.54937506,3774.9,3773.6,7.32]
[1717431911934,0.54937506,3774.9,3773.2,1.6128777]
[1717431911935,0.54937506,3774.6,3774.4,2.64936]
[1717431912117,1.83521317,3774.5,3774.4,2.64936]
[1717431912538,2.65927576,3774.5,3774.3,1.917]
[1717431912733,2.65927576,3774.4,3774.3,1.917]
[1717431913136,0.82406259,3774.4,3774.3,1.917]
[1717431913460,1.83456675,3774.4,3774.3,1.917]
[1717431913625,3.00938205,3774.4,3774.3,1.917]
[1717431913828,4.10504172,3774.4,3774.3,1.917]
[1717431914471,2.93022642,3774.4,3774.3,1.917]
[1717431914637,4.10504172,3774.4,3774.3,1.917]
[1717431914837,2.93022642,3774.4,3774.3,1.917]
[1717431915048,4.10504172,3774.4,3774.3,1.917]
[1717431915382,1.83456675,3774.4,3774.3,1.917]
[1717431915528,3.00938205,3774.4,3774.3,1.917]
[1717431916464,1.83456675,3774.4,3774.3,1.917]
[1717431916663,1.83482992,3774.4,3774.3,3.69493177]
[1717431916864,2.38423711,3774.4,3774.3,3.69493177]
[1717431917959,1.83482992,3774.4,3774.3,3.69493177]
[1717431918872,2.38423711,3774.4,3774.3,3.69493177]
[1717431919459,2.38423711,3774.4,3774.3,1.917]
[1717431919661,2.65893527,3774.4,3774.0,2.64966]
[1717431919860,2.65893527,3774.3,3774.2,2.64956]
[1717431921978,1.83482992,3774.3,3774.2,2.64956]
[1717431922142,1.83482992,3774.3,3774.2,3.97082577]
[1717431922577,1.83482992,3774.3,3774.2,4.55960835]
[1717431923588,2.38419092,3774.3,3774.2,4.55960835]
[1717431923867,1.83482992,3774.3,3774.2,4.55960835]
[1717431924062,0.85379547,3774.3,3774.2,4.55960835]
[1717431924511,0.549361,3774.5,3774.2,4.55960835]
[1717431924796,0.549361,3774.5,3774.4,2.64942]
[1717431925010,2.38448535,3774.5,3774.4,2.64942]
[1717431925177,1.83512435,3774.5,3774.4,2.64942]
[1717431925503,4.10563749,3774.5,3774.4,2.64942]
[1717431926003,2.93078402,3774.5,3774.4,2.64942]
[1717431926204,3.00997782,3774.5,3774.4,2.64942]
[1717431926961,2.65910868,3774.5,3774.4,2.64942]
[1717431927403,4.10556212,3774.5,3774.4,2.64942]
[1717431927700,2.93078402,3774.5,3774.4,2.64942]
[1717431927908,3.00990245,3774.5,3774.4,2.64942]
[1717431928275,3.00985748,3774.5,3774.4,2.64942]
[1717431928488,2.65906875,3774.5,3774.4,2.64942]
[1717431928892,1.83512435,3774.5,3774.4,2.64942]
[1717431929099,1.83512435,3774.5,3774.4,3.106062]
[1717431929766,1.83512435,3774.5,3774.4,4.42732777]
[1717431930208,0.85394173,3774.5,3774.4,4.42732777]
[1717431932310,1.83531851,3774.5,3774.4,4.42732777]
[1717431932713,0.85394173,3774.5,3774.4,4.42732777]
[1717431933508,1.83541643,3774.5,3774.4,4.42732777]
[1717431933714,0.85394173,3774.5,3774.4,4.42732777]
[1717431934313,0.85394173,3774.5,3774.4,7.07674777]
[1717431934520,0.5493036,3774.9,3774.8,2.64914]
[1717431934715,1.83595441,3774.9,3774.8,6.15231977]
[1717431935031,2.65989881,3774.9,3774.8,6.15231977]
[1717431935420,1.83595441,3774.9,3774.8,6.15231977]
[1717431935943,2.38567018,3774.9,3774.8,6.15231977]
[1717431936439,1.83595441,3774.9,3774.8,6.15231977]
[1717431936594,2.3859233,3774.9,3774.8,6.15231977]
[1717431936992,1.83620481,3774.9,3774.8,6.15231977]
[1717431937415,2.66014921,3774.9,3774.8,3.97040577]
[1717431937691,2.66014921,3774.9,3774.8,5.88740577]
[1717431938019,2.38583336,3774.9,3774.8,5.88740577]
[1717431938394,1.83613456,3774.9,3774.8,5.88740577]
[1717431938843,0.85442018,3774.9,3774.8,5.88740577]
[1717431939037,0.85442018,3774.9,3774.8,6.74108135]
[1717431940920,1.83583327,3774.9,3774.8,6.74108135]
[1717431941247,0.85442018,3774.9,3774.8,6.74108135]
[1717431942350,0.85404423,3774.9,3774.8,5.88740577]
[1717431942723,0.85404423,3774.9,3774.8,3.97040577]
[1717431942914,1.83528408,3774.9,3774.8,5.88740577]
[1717431944028,2.38471687,3774.9,3774.8,5.88740577]
[1717431944946,1.83528408,3774.9,3774.8,5.88740577]
[1717431947185,2.65922848,3774.9,3774.8,4.56614]
[1717431947342,4.10593044,3774.9,3774.8,4.56614]
[1717431947547,4.67853368,3774.9,3774.8,4.56614]
[1717431947784,4.67853368,3774.9,3774.4,2.64935]
[1717431947989,0.82401609,3774.6,3774.5,1.917]
[1717431948291,2.65930017,3774.6,3774.5,1.917]
[1717431949804,3.01013678,3774.6,3774.5,1.917]
[1717431949948,3.01013678,3774.6,3774.5,3.23826577]
[1717431950149,2.65931037,3774.6,3774.5,3.23826577]
[1717431950346,1.83528408,3774.6,3774.5,3.82702735]
[1717431950850,2.38462171,3774.6,3774.5,3.82702735]
[1717431951488,2.38462171,3774.6,3774.5,3.23826577]
[1717431951699,1.83528408,3774.6,3774.5,3.23826577]
[1717431951868,1.83528408,3774.6,3774.4,2.64935]
[1717431952066,0.82402629,3774.6,3774.4,3.97061577]
[1717431952270,1.83483079,3774.5,3774.4,3.97061577]
[1717431952491,2.65885708,3774.5,3774.4,5.88761577]
[1717431952667,2.65886055,3774.5,3774.4,4.56635]
[1717431953058,3.00970078,3774.5,3774.4,4.56635]
[1717431955201,4.1083889,3774.5,3774.4,4.56635]
[1717431955927,4.1083889,3774.5,3774.4,2.64935]
[1717431956226,4.1083889,3774.5,3774.4,4.56635]
[1717431956427,3.58235541,3774.5,3774.4,4.56635]
[1717431957343,3.5823584,3774.5,3774.4,4.56635]
[1717431957497,3.00970078,3774.5,3774.4,4.56635]
[1717431958023,4.1087652,3774.5,3774.4,4.56635]
[1717431959521,3.00970078,3774.5,3774.4,5.88761577]
[1717431959741,3.00970078,3774.5,3774.4,6.47637735]
[1717431959943,2.65912073,3774.5,3774.4,5.88761577]
[1717431960438,3.01012351,3774.5,3774.4,5.88761577]
[1717431960952,2.38454147,3774.5,3774.4,3.97061577]
[1717431961263,2.38454147,3774.5,3774.4,4.56635]
[1717431961414,3.01055487,3774.5,3774.4,4.56635]
[1717431962059,3.60648953,3774.5,3774.4,1.917]
[1717431962214,3.60648953,3774.5,3774.1,1.917]
[1717431962215,5.55339077,3774.5,3774.1,1.917]
[1717431962415,1.0995895,3774.2,3774.1,1.917]
[1717431962640,4.11014437,3774.2,3774.1,1.917]
[1717431963552,4.81606252,3774.2,3774.0,2.64965]
[1717431963763,4.1102253,3774.1,3774.0,2.64965]
[1717431963927,3.01055487,3774.1,3774.0,2.64965]
[1717431964131,4.11008502,3774.1,3774.0,2.64965]
[1717431967976,4.11008502,3774.1,3773.6,2.64993]
[1717431968127,0.82461429,3773.8,3773.6,4.56693]
[1717431968328,3.01029313,3773.7,3773.6,4.56693]
[1717431969365,1.83483079,3773.7,3773.6,4.56693]
[1717431969567,3.01029313,3773.7,3773.6,4.56693]
[1717431969903,4.10977886,3773.7,3773.6,4.56693]
[1717431970070,3.01029313,3773.7,3773.6,4.56693]
[1717431970270,2.65917959,3773.7,3773.6,4.56693]
[1717431970574,1.83483079,3773.7,3773.6,4.56693]
[1717431970785,1.83483079,3773.7,3773.6,8.76758877]
[1717431970986,0.54951701,3773.9,3773.6,8.76758877]
[1717431971169,0.54951701,3773.9,3773.8,2.64984]
[1717431971355,1.83532897,3773.9,3773.8,2.64984]
[1717431971557,2.65967777,3773.9,3773.8,2.64984]
[1717431971794,3.0107632,3773.9,3773.8,2.64984]
[1717431972194,1.17543423,3773.9,3773.8,2.64984]
[1717431972393,1.8355073,3773.9,3773.6,1.917]
[1717431972564,2.65982274,3773.8,3773.6,1.917]
[1717431972753,1.8355073,3773.7,3773.6,1.917]
[1717431972965,1.83544082,3773.7,3773.6,1.917]
[1717431974394,2.65984818,3773.7,3773.6,1.917]
[1717431975388,1.83553274,3773.7,3773.6,1.917]
[1717431976490,2.65984818,3773.7,3773.6,1.917]
[1717431976888,1.83553274,3773.7,3773.6,1.917]
[1717431977392,3.76622115,3773.7,3773.6,1.917]
[1717431977605,3.7662205,3773.7,3773.6,1.917]
[1717431977790,3.7662205,3773.7,3773.2,2.65026]
[1717431978114,0.54923401,3773.5,3773.3,1.917]
[1717431978305,0.85410822,3773.4,3773.3,1.917]
[1717431980486,1.83457973,3773.4,3773.3,1.917]
[1717431980885,1.83370928,3773.4,3773.3,1.917]
[1717431981525,2.86132215,3773.4,3773.0,0.1266847]
[1717431981709,2.38264409,3773.3,3773.0,0.1266847]
[1717431982018,2.38264409,3773.2,3773.0,0.1266847]
[1717431982217,0.54893481,3773.2,3773.0,0.1266847]
[1717431982436,1.83236253,3773.1,3773.0,0.1266847]
[1717431983007,0.85261996,3773.1,3773.0,0.1266847]
[1717431984122,1.83209055,3773.1,3773.0,2.0436847]
[1717431984320,1.83196522,3773.1,3773.0,2.0436847]
[1717431985204,0.85261996,3773.1,3773.0,2.0436847]
[1717431985404,1.83170369,3773.1,3773.0,2.0436847]
[1717431985613,2.3806385,3773.1,3773.0,2.0436847]
[1717431985990,2.85872126,3773.1,3773.0,0.1266847]
[1717431986208,5.10882126,3773.1,3773.0,0.1266847]
[1717431986420,6.30442163,3773.1,3773.0,0.1266847]
[1717431986681,7.40390736,3773.1,3773.0,0.1266847]
[1717431987117,7.40383597,3773.1,3773.0,0.1266847]
[1717431987521,6.30435024,3773.1,3772.1,2.65099]
[1717431987823,0.54822549,3772.6,3772.4,1.917]
[1717431987979,0.85188719,3772.5,3772.4,1.917]
[1717431988688,0.84443281,3772.5,3772.4,1.917]
[1717431989284,0.54822549,3772.8,3772.4,1.917]
[1717431989722,1.81747979,3772.7,3772.4,1.917]
[1717431989927,1.81747979,3772.7,3772.6,0.801]
[1717431990429,1.8173038,3772.7,3772.6,0.801]
[1717431990953,2.36552929,3772.7,3772.6,0.801]
[1717431991112,1.52118473,3772.7,3772.6,0.801]
[1717431991423,2.36552929,3772.7,3772.6,0.801]
[1717431991601,1.52118473,3772.7,3772.6,0.801]
[1717431991797,2.36552929,3772.7,3772.6,0.801]
[1717431992123,1.8173038,3772.7,3772.6,0.801]
[1717431992328,0.97287836,3772.7,3772.6,0.801]
[1717431992628,1.81722292,3772.7,3772.6,0.801]
[1717431992838,0.97287836,3772.7,3772.6,0.801]
[1717431993199,1.81729119,3772.7,3772.6,0.801]
[1717431993393,0.97298133,3772.7,3772.6,0.801]
[1717431993590,0.84421096,3772.7,3772.6,0.801]
[1717431993788,1.81719229,3772.7,3772.6,0.801]
[1717431993984,2.78744627,3772.7,3772.6,0.801]
[1717431994189,2.23922078,3772.7,3772.6,0.801]
[1717431994505,2.78744627,3772.7,3772.6,0.801]
[1717431995840,2.7870447,3772.7,3772.6,0.801]
[1717431996137,2.7870447,3772.7,3771.7,3.346888]
[1717431996334,2.7870447,3772.7,3771.8,1.32126577]
[1717431996335,0.54822549,3772.5,3771.8,1.32126577]
[1717431996535,3.15754754,3772.6,3771.8,1.32126577]
[1717431996536,2.36501621,3772.4,3771.8,1.32126577]
[1717431996737,0.54822549,3772.4,3772.3,0.801]
[1717431996948,1.39221299,3772.5,3772.3,0.801]
[1717431997116,0.9727425,3772.4,3771.8,1.32126577]
[1717431997436,0.84399707,3772.3,3771.8,1.32126577]
[1717431997623,0.54822549,3772.4,3772.2,0.801]
[1717431997818,0.84398334,3772.3,3772.2,0.801]
[1717431998037,0.54822549,3772.5,3771.8,1.32126577]
[1717431998221,0.54822549,3772.5,3772.4,0.801]
[1717431998426,1.81348366,3772.5,3772.4,0.801]
[1717431998630,2.23799061,3772.5,3771.8,1.32126577]
[1717431998924,2.23799061,3772.5,3771.7,2.65128]
[1717431998925,2.36464834,3772.4,3771.7,2.65128]
[1717431999131,0.54780804,3772.4,3772.3,0.801]
[1717431999324,1.88010773,3772.4,3772.3,0.801]
[1717431999639,2.85268234,3772.4,3772.3,0.801]
[1717431999823,2.3048743,3772.4,3772.3,0.801]
[1717432000340,2.3048743,3772.4,3771.7,2.65128]
[1717432000549,4.64561819,3772.3,3771.3,2.3959]
[1717432000751,3.11723452,3772.2,3772.1,0.801]
[1717432000906,2.56953272,3772.2,3772.1,0.801]
[1717432001301,7.53018415,3772.2,3771.1,2.65172]
[1717432001570,2.39620451,3772.0,3771.8,0.801]
[1717432001846,1.81641639,3771.9,3771.8,0.801]
[1717432002053,2.25109564,3771.9,3771.8,0.801]
[1717432002348,2.25109564,3771.9,3771.1,2.65172]
[1717432002589,1.25616091,3771.9,3771.8,0.801]
[1717432002855,4.64735335,3771.9,3771.8,0.801]
[1717432003002,3.64545541,3771.9,3771.8,0.801]
[1717432003209,3.64545541,3771.9,3770.5,1.061332]
[1717432003411,0.54757936,3771.4,3770.6,8.82404577]
[1717432003655,2.3636925,3771.3,3770.6,8.82404577]
[1717432003837,0.54757936,3771.3,3771.2,0.801]
[1717432004005,4.44292601,3771.8,3771.2,0.801]
[1717432004006,0.54757936,3771.6,3771.2,0.801]
[1717432004201,0.8434435,3771.5,3770.9,2.65182]
[1717432004401,0.54757936,3771.6,3771.4,0.801]
[1717432004616,0.97196955,3771.5,3770.9,3.97308577]
[1717432004851,0.97196955,3771.5,3770.6,4.8507]
[1717432004852,0.54757936,3771.6,3770.6,2.5]
[1717432005077,0.55,3771.5,3770.8,0.801]
[1717432005223,0.54757936,3771.3,3770.6,2.5]
[1717432005560,0.96722341,3771.2,3771.1,0.801]
[1717432006055,0.54757936,3771.4,3771.1,0.801]
[1717432006393,0.54757936,3771.7,3770.8,2.65194]
[1717432006647,0.54757936,3771.7,3771.1,2.65171]
[1717432006648,2.35143399,3771.7,3771.1,2.65171]
[1717432006851,0.54757936,3771.9,3771.1,3.97297577]
[1717432007046,0.54757936,3771.9,3771.2,1.925]
[1717432007345,1.4100697,3772.0,3771.3,2.65159]
[1717432007346,0.54757936,3772.0,3771.3,2.65159]
[1717432007536,1.80387641,3772.0,3771.5,2.65143]
[1717432007871,0.54757936,3772.2,3771.5,2.65143]
[1717432008010,0.83702343,3772.1,3771.5,2.65143]
[1717432008207,2.4833,3772.0,3771.1,2.65174]
[1717432008458,2.4833,3772.0,3771.3,2.65159]
[1717432008459,1.80410728,3771.9,3771.3,2.65159]
[1717432008753,2.1226095,3772.0,3771.3,2.65159]
[1717432009051,2.35166296,3771.9,3771.3,2.65159]
[1717432009233,0.83702533,3771.8,3771.3,2.65159]
[1717432009746,2.1226095,3772.0,3771.3,2.65159]
[1717432009913,0.837025,3771.9,3771.3,2.916749]
[1717432010135,2.1226095,3772.1,3771.3,2.65159]
[1717432010439,0.83708477,3772.0,3771.5,2.65143]
[1717432010760,0.57308056,3772.1,3771.5,2.65143]
[1717432010928,0.83710749,3772.0,3771.5,2.65143]
[1717432011249,0.57308056,3772.1,3771.5,2.65143]
[1717432011455,2.1226095,3772.2,3771.7,2.65128]
[1717432011456,0.57308056,3772.2,3771.7,2.65128]
[1717432011664,1.12065992,3772.3,3771.7,4.57628]
[1717432011962,2.1226095,3772.5,3771.7,5.47198154]
[1717432012141,0.83736838,3772.4,3771.7,5.47198154]
[1717432012341,1.12058948,3772.6,3772.0,2.65108]
[1717432012541,0.57297225,3772.6,3772.0,2.65108]
[1717432012770,2.12291291,3772.7,3772.0,2.65108]
[1717432012966,1.80502202,3772.6,3772.0,2.65108]
[1717432013148,0.83746954,3772.5,3772.0,2.65108]
[1717432013358,0.54757936,3772.7,3772.0,2.65108]
[1717432013658,1.57533355,3772.8,3772.3,2.65087]
[1717432013659,0.83774246,3772.6,3772.3,2.65087]
[1717432013810,2.12291291,3772.8,3772.3,2.65087]
[1717432014028,0.83779827,3772.7,3772.3,2.65087]
[1717432015031,2.12291291,3773.0,3772.6,1.925]
[1717432015250,1.80615619,3772.9,3772.7,2.65062]
[1717432015582,0.82153082,3773.1,3772.6,1.925]
[1717432015583,2.12291291,3773.1,3772.9,2.65048]
[1717432015790,0.83817314,3773.0,3772.9,2.65048]
[1717432016096,1.36883509,3773.7,3772.9,4.57548]
[1717432016097,2.12291291,3773.4,3772.9,4.57548]
[1717432016388,1.80714167,3773.3,3772.9,4.57548]
[1717432016563,0.83846888,3773.2,3772.9,4.57548]
[1717432016749,0.54757936,3773.4,3772.9,4.57548]
[1717432017160,2.92774228,3773.4,3772.9,4.57548]
[1717432017395,2.92774228,3773.4,3773.1,2.65034]
[1717432017396,1.80732399,3773.3,3773.1,2.65034]
[1717432017696,0.54757936,3773.5,3773.3,2.6502]
[1717432017894,0.54757936,3773.7,3773.3,4.5752]
[1717432018099,0.83894022,3773.6,3773.3,4.5752]
[1717432018398,0.54757936,3773.8,3773.3,4.5752]
[1717432018558,0.84212126,3773.8,3773.3,4.5752]
[1717432018766,0.83901485,3773.7,3773.3,4.5752]
[1717432019280,0.84212126,3773.8,3773.3,4.5752]
[1717432019456,0.83895297,3773.7,3773.3,4.5752]
[1717432020299,1.38653233,3773.7,3773.3,4.5752]
[1717432020461,0.25026051,3773.6,3773.3,2.6502]
[1717432020656,0.79783987,3773.6,3773.3,2.6502]
[1717432020862,0.54757936,3773.4,3773.3,2.6502]
[1717432021162,1.38653233,3773.4,3773.3,2.6502]
[1717432021360,1.38653233,3773.4,3773.3,4.5752]
[1717432021361,0.83895297,3773.4,3773.3,4.5752]
[1717432021570,0.54757936,3773.6,3773.3,4.5752]
[1717432021776,0.54757936,3773.6,3773.3,5.89646577]
[1717432022190,2.35601067,3773.7,3773.3,5.89646577]
[1717432022389,0.83914411,3773.6,3773.3,5.89646577]
[1717432022555,0.54757936,3773.8,3773.5,2.65004]
[1717432022763,0.82153082,3774.0,3773.7,1.925]
[1717432022764,1.38689999,3773.9,3773.7,1.925]
[1717432022989,0.83929314,3773.8,3773.7,3.24626577]
[1717432023312,0.82153082,3774.1,3773.7,5.89617577]
[1717432023313,0.54757936,3774.1,3773.7,5.89617577]
[1717432023659,0.83931744,3774.1,3773.7,5.89617577]
[1717432023859,0.54757936,3774.3,3774.0,2.64968]
[1717432024097,0.54757936,3774.4,3774.0,2.64968]
[1717432024304,0.83927303,3774.3,3774.2,1.925]
[1717432025097,0.13691102,3774.4,3774.2,1.925]
[1717432025810,0.54757936,3774.5,3774.3,2.64949]
[1717432026105,0.54757936,3774.7,3774.3,2.64949]
[1717432026288,0.54757936,3774.8,3774.6,1.925]
[1717432026601,0.54757936,3774.9,3774.6,1.925]
[1717432026817,0.43591102,3774.8,3774.6,1.925]
[1717432027701,2.99,3775.0,3774.7,2.64921]
[1717432028609,2.99,3775.0,3774.9,2.64907]
[1717432029813,2.99,3775.0,3774.9,3.97033577]
[1717432032031,2.99,3775.0,3774.9,5.89533577]
[1717432034001,2.99,3775.0,3774.9,9.99237535]
[1717432034187,2.99,3775.0,3774.9,8.89533577]
[1717432034384,2.99,3775.0,3774.9,5.89533577]
[1717432035903,2.99,3775.0,3774.9,4.57407]
[1717432037344,2.99,3775.0,3774.5,2.6493]
[1717432037695,2.99,3775.0,3774.1,4.57458]
[1717432037896,2.99,3775.0,3774.7,1.925]
[1717432037897,0.563888,3774.9,3774.7,1.925]
[1717432038192,2.99,3775.0,3774.7,1.32126577]
[1717432038435,2.99,3775.0,3774.8,4.57414]
[1717432040231,2.99,3775.0,3774.8,2.64914]
[1717432040441,2.99,3775.0,3774.6,1.925]
[1717432040647,0.299,3774.9,3774.6,1.925]
[1717432042392,0.299,3774.9,3773.9,5.3806]
[1717432042393,0.299,3774.9,3773.9,2.3806]
[1717432042595,0.299,3774.9,3774.0,3.97091577]
[1717432042806,1.87612159,3774.9,3774.2,1.925]
[1717432043006,2.64914,3774.8,3774.2,1.925]
[1717432043240,2.3859166,3774.7,3774.2,1.925]
[1717432043412,2.95860506,3774.7,3774.2,1.925]
[1717432043799,2.14981005,3774.6,3774.2,1.925]
[1717432044100,1.57712159,3774.6,3774.2,1.925]
[1717432044300,2.14981005,3774.5,3774.2,1.925]
[1717432044540,2.1378961,3774.5,3774.2,1.925]
[1717432044948,2.14981005,3774.4,3773.8,1.925]
[1717432045250,2.14981005,3774.3,3773.8,1.925]
[1717432045559,2.14981005,3774.2,3773.8,1.925]
[1717432045769,1.57712159,3774.2,3773.8,1.925]
[1717432046104,1.57712159,3774.0,3773.8,1.925]
[1717432046509,2.14981005,3773.9,3773.8,1.925]
[1717432046707,1.57712159,3774.0,3773.8,1.925]
[1717432046942,1.57712159,3774.1,3773.8,1.925]
[1717432047141,1.57691243,3774.1,3773.8,1.925]
[1717432047312,2.14965828,3774.0,3773.8,1.925]
[1717432047637,1.57691243,3774.0,3773.8,1.925]
[1717432047940,2.14965828,3773.9,3773.8,1.925]
[1717432048324,1.57691243,3773.9,3773.8,1.925]
[1717432048537,1.57696795,3773.9,3773.8,1.925]
[1717432048842,1.57696795,3773.9,3773.6,2.64996]
[1717432049041,2.14972927,3773.8,3773.0,2.4838]
[1717432049245,7.82789927,3773.8,3772.6,2.65064]
[1717432049550,2.14972927,3773.7,3772.7,1.32126577]
[1717432049708,1.57694843,3773.2,3772.7,1.32126577]
[1717432049904,1.57694843,3773.2,3772.7,3.24626577]
[1717432050322,0.80428726,3773.7,3772.7,3.24626577]
[1717432050323,1.57694843,3773.3,3772.7,3.24626577]
[1717432050860,0.80428726,3773.7,3772.7,3.24626577]
[1717432050861,1.57694843,3773.4,3773.1,1.925]
[1717432051355,1.57694843,3773.5,3773.1,1.925]
[1717432052246,1.37712942,3773.7,3773.1,1.925]
[1717432052247,1.57694843,3773.6,3773.1,1.925]
[1717432052410,0.80428726,3773.7,3773.1,1.925]
[1717432052612,1.57706576,3773.5,3773.1,1.925]
[1717432053049,1.57706576,3773.5,3773.1,3.24626577]
[1717432053246,1.57706576,3773.6,3773.1,3.24626577]
[1717432053901,2.14990289,3773.7,3773.1,3.24626577]
[1717432054107,2.14988175,3773.7,3773.1,3.24626577]
[1717432054421,2.62985693,3773.7,3773.1,3.24626577]
[1717432054730,2.62985693,3773.7,3773.1,1.925]
[1717432054939,2.14988175,3773.6,3773.1,1.925]
[1717432055146,1.57706576,3773.6,3773.1,1.925]
[1717432055906,1.57706576,3773.6,3772.8,2.65051]
[1717432056122,1.05279117,3773.7,3772.7,1.925]
[1717432056123,5.38268238,3773.5,3772.7,1.925]
[1717432056333,4.80986639,3773.5,3772.7,3.24626577]
[1717432056539,2.98735104,3773.4,3772.7,3.24626577]
[1717432056756,0.83737064,3773.3,3772.7,3.24626577]
[1717432057059,2.4144364,3773.3,3772.7,3.24626577]
[1717432057354,1.57706576,3773.4,3772.7,3.24626577]
[1717432057501,1.80563009,3773.3,3772.7,3.24626577]
[1717432057702,2.65071,3772.6,3772.2,2.5]
[1717432057955,2.65083,3772.4,3772.2,2.5]
[1717432058255,2.52003515,3772.3,3772.2,2.5]
[1717432058437,3.91447031,3772.3,3772.2,1.02570663]
[1717432058744,4.66947722,3772.3,3772.2,1.02570663]
[1717432059047,5.49100804,3772.3,3772.2,1.02570663]
[1717432059210,3.91447031,3772.3,3772.2,1.02570663]
[1717432059413,5.49108168,3772.3,3772.2,1.02570663]
[1717432059949,3.91467663,3772.3,3772.2,1.02570663]